Cogmind - Beta 17.1 @@@ ROGUE MODE // 2026.09.08 @ 21:36:46 Player: Bikerider58 Result: Destroyed by 39-HH2(g) with Salvaging Laser Performance ------------- Evolutions (0) 0 Regions Visited (4) 800 Robots Destroyed (29) 145 Value Destroyed (875) 875 Prototype IDs (2) 40 Alien Tech Used (0) 0 Bonus (10446) 10446 TOTAL SCORE: 12306 Bonus ------- Follower Combat Kills 474 Prayed to X0-1V1 5000 Major X0-1V1 Interference 4750 Registered with UFD 300 Friendly Fire -78 Cogmind --------- Core Integrity 0/370 Matter 63/150 Energy 252/900 System Corruption 3% Temperature Warm (148) Movement Treading (250) Ox1 Location -7/Scraptown Parts ------- > --- POWER (1) -------- Fission Core > --- PROPULSION (3) --- Armored Treads Armored Treads Armored Treads > --- UTILITY (1) ------ Huge Storage Unit > --- WEAPON (6) ------- Improved Medium Laser (fused) Improved Proton Missile Launcher Heavy Rocket Launcher > --- INVENTORY (25) --- Armored Treads Armored Treads Medium Treads Makeshift Microdissipator Network Seismic Detector Improved Salvage Targeting Computer Transmission Jammer Improved Medium Armor Plating Makeshift Light Armor Plating Authchip [Device] Authchip [Armor] High-powered Tractor Beam X0-1V1's Piety Tracker Phase Cannon Dirty Datajack (20) CPS Tube (2) CPS Tube (2) CPS Tube (2) Multitool Power Maul Peak State ------------ > --- POWER ------------ Fission Core > --- PROPULSION ------- Armored Treads Armored Treads Armored Treads > --- UTILITY ---------- Huge Storage Unit > --- WEAPON ----------- Improved Medium Laser Improved Proton Missile Launcher Heavy Rocket Launcher > --- INVENTORY -------- Armored Treads Armored Treads Medium Treads Makeshift Microdissipator Network Seismic Detector Improved Salvage Targeting Computer Transmission Jammer Improved Medium Armor Plating Makeshift Light Armor Plating Authchip [Device] Authchip [Armor] High-powered Tractor Beam X0-1V1's Piety Tracker Phase Cannon Dirty Datajack CPS Tube CPS Tube CPS Tube Multitool Power Maul [Rating: 35] Favorites ----------- Power Light Angular Momentum Engine Engine Light Angular Momentum Engine Power Core Fission Core Propulsion Armored Treads Treads Armored Treads Utility Huge Storage Unit Device Seismic Detector Storage Huge Storage Unit Weapon Improved Medium Laser Energy Gun Improved Medium Laser Ballistic Gun Heavy Assault Rifle Ballistic Cannon Battle Cannon Launcher Heavy Rocket Launcher Impact Weapon Power Maul Slashing Weapon Makeshift Axe Build | -11 -10 -10 -7 -7 ------- Run | Yrd Mat Sub Rec Scr Slots Evolved . | . . . . . Power . | . . . . . Propulsion . | . . . . . Utility . | . . . . . Weapon . | . . . . . Parts Attached 35 | 8 5 12 3 7 Power 5 | 1 . 2 . 2 Engine 4 | 1 . 2 . 1 Core 1 | . . . . 1 Reactor . | . . . . . Propulsion 8 | 2 1 1 2 2 Treads 8 | 2 1 1 2 2 Leg . | . . . . . Wheel . | . . . . . Hover . | . . . . . Flight . | . . . . . Utility 6 | 2 1 2 1 . Device 3 | 1 . 2 . . Storage 3 | 1 1 . 1 . Processor . | . . . . . Hackware . | . . . . . Protection . | . . . . . Artifact . | . . . . . Weapon 16 | 3 3 7 . 3 Energy Gun 6 | 3 1 2 . . Energy Cannon . | . . . . . Ballistic Gun 3 | . 2 1 . . Ballistic Cannon 2 | . . 2 . . Launcher 3 | . . 1 . 2 Special Weapon . | . . . . . Impact Weapon 1 | . . . . 1 Slashing Weapon 1 | . . 1 . . Piercing Weapon . | . . . . . Special Melee Weapon . | . . . . . Unidentified Prototypes 1 | . 1 . . . Parts Lost 3 | . . . . 3 Power . | . . . . . Propulsion 2 | . . . . 2 Utility . | . . . . . Weapon 1 | . . . . 1 Highest Loss Streak 3 | . . . . 3 To Critical Strikes . | . . . . . Average Backups 19 | . 8 14 21 24 Power . | . . . . . Propulsion 3 | . . . 4 5 Utility 8 | . 2 5 10 11 Weapon 4 | . 5 6 4 3 Tool/Special . | . . . . . Unused Backups 39 | . 2 9 3 25 Power 1 | . . . . 1 Propulsion 5 | . . 1 1 3 Utility 18 | . 2 2 . 14 Weapon 10 | . . 6 2 2 Tool/Special 5 | . . . . 5 Average Slot Usage (%) 99 | . 100 100 100 99 Engine 13 | . 14 14 14 13 Treads 37 | . 28 29 42 41 Device 4 | . 14 12 . . Storage 13 | . 14 14 14 13 Energy Gun 23 | . 15 12 28 27 Ballistic Gun 2 | . 12 3 . . Ballistic Cannon 1 | . . 5 . . Slashing Weapon 1 | . . 6 . . Peak Build Rating 35 | 7 14 19 26 35 Average Rating 22 | 5 10 15 24 28 On Entrance 13 | . 7 14 19 26 Avg Prop Armor Cover (%) . | . . . . . Naked Turns . | . . . . . Heaviest Build 108 | 12 30 34 94 108 Greatest Support 60 | 40 40 60 60 60 Greatest Overweight (x) 1 | . . . 1 1 Average Overweight (x) . | . . . . 1 Largest Inventory Capacity 25 | 8 15 15 25 25 Average Capacity 21 | 7 10 15 24 25 Most Carried 25 | 1 15 15 25 25 Average Carried 20 | . 8 14 23 24 Final Capacity 25 | 8 15 15 25 25 Final Carried 25 | 1 15 15 25 20 Class Distribution -------------------- 100% | Mutant Dominant Class ---------------- Mutant | -10/Materials Mutant | -10/Subcaves Mutant | -7/Recycling Mutant | -7/Scraptown Resources | -11 -10 -10 -7 -7 ----------- Run | Yrd Mat Sub Rec Scr Matter Collected 1083 | 280 125 332 285 61 Remotely . | . . . . . Salvage Created 1271 | 162 212 226 285 386 Parts 66 | 11 12 24 5 14 Haulers Intercepted 1 | . 1 . . . Recyclers Shooed 1 | 1 . . . . Parts Field Recycled . | . . . . . Retrieved Matter . | . . . . . Parts Self-Destructed 6 | . . 6 . . Prevented . | . . . . . Parts Restored . | . . . . . Kills | -11 -10 -10 -7 -7 ------- Run | Yrd Mat Sub Rec Scr Combat Hostiles Destroyed 22 | . 3 9 3 7 Guns 12 | . 3 4 3 2 Cannons 2 | . . 2 . . AOE 8 | . . 3 . 5 Classes Destroyed 11 | 2 2 2 1 4 Tunneler 4 | 3 1 . . . Hauler 1 | . 1 . . . Recycler 2 | 1 . . 1 . Swarmer 3 | . . 3 . . Grunt 3 | . 3 . . . Sentry 3 | . . . 3 . Subdweller 6 | . . 6 . . Bolteater 1 | . . . . 1 Explorer 1 | . . . . 1 Guru 1 | . . . . 1 Scrapper 4 | . . . . 4 Best Kill Streak 5 | 2 2 3 1 5 Combat Bots Only 5 | . 2 3 1 5 Max Kills in Single Turn 3 | 1 1 3 1 2 Gunslinging . | . . . . . Exploded 3 | . . 3 . 2 Melee . | . . . . . Uniques/NPCs Destroyed 1 | . . . . 1 Triborg (-7/Scraptown) Combat | -11 -10 -10 -7 -7 -------- Run | Yrd Mat Sub Rec Scr Hostile Shots Fired 218 | . 8 70 45 95 Missed 63 | . 1 19 18 25 Hits 155 | . 7 51 27 70 Melee 2 | . . . . 2 Projectile 153 | . 7 51 27 68 Critical Strikes 5 | . . . . 5 Damage Taken 2077 | . 86 573 232 1186 Core 576 | . 20 154 27 375 Absorbed by Shields 114 | . . 114 . . Core Remaining (%) 100 | 100 . . . . Volleys Fired 80 | 8 16 30 10 16 Largest 2 | 2 2 2 2 2 Hottest 112 | 90 90 112 112 112 Shots Fired 150 | 16 32 55 20 27 Gun 127 | 16 32 37 20 22 Cannon 16 | . . 16 . . Launcher 7 | . . 2 . 5 Special . | . . . . . Kinetic 49 | . 15 34 . . Thermal 92 | 12 17 21 20 22 Explosive 4 | . . . . 4 Electromagnetic 5 | 4 . . . 1 Robot Hit Streak 19 | 2 10 19 13 10 Robot Miss Streak 5 | 5 3 2 1 5 Penetration Max . | . . . . . Secondary Targets . | . . . . . Shots Hit Robots 99 | 5 20 41 18 15 Core Hits 53 | 4 7 14 9 19 Critical Kills . | . . . . . Critical Parts Destroyed . | . . . . . Critical Strikes 7 | 1 2 1 1 2 Burn 7 | 1 2 1 1 2 Melee Attacks 9 | . . 7 . 2 Impact 2 | . . . . 2 Slashing 7 | . . 7 . . Piercing . | . . . . . Sneak Attacks 1 | . . 1 . . Combat Hostiles . | . . . . . Follow-up Attacks . | . . . . . Damage Inflicted 2528 | 76 300 810 316 1026 Guns 1237 | 75 300 303 302 257 Cannons 206 | . . 206 . . Explosions 984 | . . 215 . 769 Melee 86 | . . 86 . . Ramming 15 | 1 . . 14 . Kinetic 695 | . 138 557 . . Thermal 921 | 33 162 167 302 257 Explosive 730 | . . . . 730 Electromagnetic 81 | 42 . . . 39 Impact . | . . . . . Slashing 86 | . . 86 . . Piercing . | . . . . . Highest Corruption 3 | . . 2 . 3 Average Corruption 2 | . . 2 . 2 Corruption Purged . | . . . . . Corruption Blocked . | . . . . . Effects 1 | . . . . 1 Message Errors 1 | . . . . 1 Overload Shots . | . . . . . Overflow Damage 123 | . . 94 . 29 Projectiles . | . . . . . Explosions 67 | . . 38 . 29 Melee 56 | . . 56 . . Knockbacks 4 | . . 4 . . Impact . | . . . . . Kinetic 4 | . . 4 . . Secondary . | . . . . . Self-Inflicted Damage 118 | . . 55 . 63 Shots 2 | . . 1 . 1 Rammed 3 | 1 . . 2 . Targets Rammed 4 | 1 . . 3 . Kicked . | . . . . . Crushed 1 | . . . 1 . Highest Temperature 540 | 120 105 7 261 540 Average Temperature 114 | 45 40 4 105 191 Received Heat Transfer 779 | . 51 154 90 484 Effects 4 | . . . . 4 Shutdowns 1 | . . . . 1 Energy Bleed 1 | . . . . 1 Interference 1 | . . . . 1 Short Circuit 1 | . . . . 1 Siege Activations . | . . . . . Martial Activations . | . . . . . Shielding Activations . | . . . . . Robots Disrupted . | . . . . . Combat Hostiles . | . . . . . Robots Corrupted . | . . . . . Combat Hostiles . | . . . . . Parts Fried 1 | . . . . 1 Impact Corruptions . | . . . . . Robots Melted . | . . . . . Combat Hostiles . | . . . . . Parts Melted 6 | 1 . 1 2 2 Heat Transferred 2531 | 161 555 444 740 631 Parts Sabotaged . | . . . . . Parts Stolen . | . . . . . Parts Stripped . | . . . . . Power Chain Reactions . | . . . . . Alert | -11 -10 -10 -7 -7 ------- Run | Yrd Mat Sub Rec Scr Maximum Alert Level . | . . . . . Low Security (%) 100 | 100 100 . 100 . Level 1 . | . . . . . Level 2 . | . . . . . Level 3 . | . . . . . Level 4 . | . . . . . Level 5 . | . . . . . High Security . | . . . . . Max Security . | . . . . . Peak Influence 110 | 5 50 . 110 . Initial 11 | . . . 11 . Average 17 | 2 4 . 25 . Influence Increases 438 | 20 89 60 269 . Destroy 0b10 Robot/C 180 | . 60 60 60 . Destroy 0b10 Robot/NC 35 | 20 10 . 5 . Destroy Leader 12 | . 12 . . . Successful Hack 31 | . 7 . 24 . Select Force Hacks 180 | . . . 180 . Influence Decreases 438 | 20 89 36 293 . Entered New Map 13 | . . . 13 . Time Decay 425 | 20 89 36 280 . Squads Dispatched 2 | . 2 . . . Investigation 1 | . 1 . . . Extermination . | . . . . . Reinforcement 1 | . 1 . . . Assault . | . . . . . Garrison . | . . . . . Intercept . | . . . . . Searches Triggered . | . . . . . Construction Impeded . | . . . . . Haulers Reinforced . | . . . . . Active Scanning Responses . | . . . . . Cargo Convoy Interrupts . | . . . . . Stealth | -11 -10 -10 -7 -7 --------- Run | Yrd Mat Sub Rec Scr Distress Signals . | . . . . . Communications Jammed . | . . . . . Distress Signals . | . . . . . Times Spotted 55 | . 7 15 3 30 Peak Tracking Total 16 | . 2 6 1 16 Tactical Retreats . | . . . . . Traps | -11 -10 -10 -7 -7 ------- Run | Yrd Mat Sub Rec Scr Traps Triggered 2 | . 2 . . . Indirectly . | . . . . . Trap Hack Attempts . | . . . . . Triggered . | . . . . . Disarmed . | . . . . . Reprogrammed . | . . . . . Reused . | . . . . . Traps Extracted . | . . . . . Installed . | . . . . . Triggered . | . . . . . Machines | -11 -10 -10 -7 -7 ---------- Run | Yrd Mat Sub Rec Scr Machines Disabled 7 | . . . . 7 Max in Single Turn 3 | . . . . 3 Machines Repaired . | . . . . . Machines Dismantled . | . . . . . Machines Sabotaged . | . . . . . Overloaded Fab Kills . | . . . . . Hacking | -11 -10 -10 -7 -7 --------- Run | Yrd Mat Sub Rec Scr Machines Accessed 17 | . 5 . 12 . Terminals 10 | . 4 . 6 . Fabricators . | . . . . . Repair Stations . | . . . . . Recycling Units 7 | . 1 . 6 . Scanalyzers . | . . . . . Garrison Access . | . . . . . Total Hacks 32 | . 8 . 24 . Successful 13 | . 2 . 11 . Failed 18 | . 5 . 13 . Catastrophic 4 | . 1 . 3 . Database Lockouts 1 | . 1 . . . Manual 22 | . 4 . 18 . Terminals 24 | . 7 . 17 . Fabricators . | . . . . . Repair Stations . | . . . . . Recycling Units 8 | . 1 . 7 . Scanalyzers . | . . . . . Garrison Access . | . . . . . Terminal Hacks 1 | . 1 . . . Robot Schematic 1 | . 1 . . . Fabricator Hacks . | . . . . . Repair Station Hacks . | . . . . . Recycling Unit Hacks 1 | . 1 . . . Retrieve Components 1 | . 1 . . . Scanalyzer . | . . . . . Garrison Access Hacks . | . . . . . Unauthorized Hacks 11 | . . . 11 . Terminals 5 | . . . 5 . Botnet 1 | . . . 1 . Skim 4 | . . . 4 . Fabricators . | . . . . . Repair Stations . | . . . . . Recycling Units 6 | . . . 6 . Tunnel 6 | . . . 6 . Scanalyzers . | . . . . . Garrison Access . | . . . . . Data Cores Recovered . | . . . . . Used . | . . . . . Hacking Detections 9 | . 4 . 5 . Full Trace Events 2 | . . . 2 . Feedback Events . | . . . . . Feedback Blocked . | . . . . . Robot Schematics Acquired 1 | . 1 . . . Robots Built . | . . . . . Authchips . | . . . . . Time . | . . . . . Total Robot Build Rating . | . . . . . Part Schematics Acquired . | . . . . . Parts Built . | . . . . . Authchips . | . . . . . Time . | . . . . . Total Part Build Rating . | . . . . . Part Studies Acquired . | . . . . . Parts Repaired . | . . . . . Time . | . . . . . Parts Recycled . | . . . . . Recycled Matter . | . . . . . Retrieved Matter . | . . . . . Retrieved Components 1 | . 1 . . . Parts Scanalyzed . | . . . . . Part Schematics Acquired . | . . . . . Parts Damaged . | . . . . . Bothacking | -11 -10 -10 -7 -7 ------------ Run | Yrd Mat Sub Rec Scr Used RIF Installer . | . . . . . Robots Hacked . | . . . . . Non-combat . | . . . . . Combat . | . . . . . Robot Hacks Applied . | . . . . . Relay Couplers Released . | . . . . . Fabnet Peak Effective % . | . . . . . Robots Rewired . | . . . . . Allies Hacked . | . . . . . Hacks Repelled . | . . . . . Allies | -11 -10 -10 -7 -7 -------- Run | Yrd Mat Sub Rec Scr Total Allies 1 | . . . . 1 Largest Group 1 | . . . . 1 Highest-Rated Group 464 | . . . . 464 Highest-Rated Ally 464 | . . . . 464 Total Orders . | . . . . . Ally Attacks 52 | . . . . 52 Total Damage 2927 | . . . . 2927 Kills 18 | . . . . 18 Allies Corrupted . | . . . . . Allies Melted . | . . . . . X0-1V1 Amusement Gains 31 | . 6 . . 25 Average Entertainment 5 | . 6 2 10 2 Good Acts 26 | . . 11 7 8 Bad Acts 29 | . . 13 1 15 Intel | -11 -10 -10 -7 -7 ------- Run | Yrd Mat Sub Rec Scr Active Infowar (turns) 1544 | 16 801 727 . . Structural 41 | . . 41 . . Seismic 1503 | 16 801 686 . . Robot Analysis Total . | . . . . . Derelict Logs Recovered 4 | . . 2 . 2 Drone Launches . | . . . . . Drone Recoveries . | . . . . . Exploration | -11 -10 -10 -7 -7 ------------- Run | Yrd Mat Sub Rec Scr Turns Passed 6323 | 102 801 1062 1556 2802 Spaces Moved 2735 | 43 446 560 607 1079 Core 4 | 4 . . . . Treads 2731 | 39 446 560 607 1079 Legs . | . . . . . Wheels . | . . . . . Hover . | . . . . . Flight . | . . . . . Fastest Speed 50 | 50 160 160 160 250 Average Speed 215 | 149 160 160 246 251 Slowest Speed 252 | 160 160 160 252 252 Overloaded Moves . | . . . . . Propulsion Burnouts . | . . . . . Robots Hopped . | . . . . . Potential Cave-ins . | . . . . . Cave-ins Triggered . | . . . . . Exploration Rate (%) 56 | 4 57 38 95 86 Regions Visited 4 Branch Regions 3 Pre-discovered Areas 9 | . . 3 6 . Known Exits Taken 2 | . . 1 1 . Unknown Exits Taken 2 | 1 1 . . . Scrap Searched 11 | . . 8 . 3 Spaces Dug 1 | . . 1 . . Terrain Destroyed 44 | . . 22 . 22 Melee 1 | . . 1 . . Projectile . | . . . . . AOE 43 | . . 21 . 22 Terrain Rammed . | . . . . . Walls Destroyed . | . . . . . Machines Disabled . | . . . . . Actions | -11 -10 -10 -7 -7 --------- Run | Yrd Mat Sub Rec Scr Total 3004 | 60 503 662 646 1133 Wait 22 | . 6 13 2 1 Move 2732 | 43 445 559 606 1079 Hop . | . . . . . Pick Up 60 | 1 19 14 14 12 Fast Attach 15 | 7 5 2 . 1 Attach 6 | . . 1 . 5 Detach . | . . . . . Swap 34 | 1 3 20 4 6 Drop 43 | . 9 16 7 11 Fire 80 | 8 16 30 10 16 Melee 9 | . . 7 . 2 Ram . | . . . . . Kick . | . . . . . Crush 3 | . . . 3 . Escape Stasis . | . . . . . Rewire . | . . . . . Trap . | . . . . . Miscellaneous . | . . . . . Route ------- -11/Scrapyard -10/Materials (discovered 3 exits: [*Mat] / [*Min] / [*Sub]) -10/Subcaves (discovered 2 exits: Mat / *Rec) -7/Recycling (discovered 2 exits: [*Fac] / *Scr) -7/Scraptown (discovered 1 exit: [*Fac]) History --------- Turn | Location | Event 57 | -11/Scrapyard | Discovered new exit (range 15) 103 | -11/Scrapyard | Entered Materials 104 | -10/Materials | Met a group of wandering Federalists 176 | -10/Materials | Lost 4 allies 255 | -10/Materials | Central database locked down 316 | -10/Materials | Build established: Mutant 525 | -10/Materials | Discovered new exit (range 7) 623 | -10/Materials | Discovered new exit (range 16) 881 | -10/Materials | Discovered new exit (range 6) 899 | -10/Materials | Prayed at D.C.S.S. Altar Unit 904 | -10/Materials | Entered Subcaves 905 | -10/Subcaves | Approached by a straggling Scientist 927 | -10/Subcaves | Core integrity permanently improved by X0-1V1 (+200) 1099 | -10/Subcaves | Disturbed a concealed Subdweller 1157 | -10/Subcaves | Identified exit to Materials 1157 | -10/Subcaves | X0-1V1 revealed exit location to -8/Materials 1356 | -10/Subcaves | Learned location of Mines (-10) 1479 | -10/Subcaves | Learned location of Storage (-7) 1776 | -10/Subcaves | Learned location of Zion (-7) 1776 | -10/Subcaves | Met a Zionite searching for "candidates" 1784 | -10/Subcaves | Sensors blinded by X0-1V1 1837 | -10/Subcaves | X0-1V1 sent hostile S-10 Pest (x3) 1852 | -10/Subcaves | Core integrity restored by X0-1V1 (+67) 1868 | -10/Subcaves | X0-1V1 revealed exit location to -8/Materials 1876 | -10/Subcaves | X0-1V1 mutated your Utility slot to Propulsion slot 1945 | -10/Subcaves | X0-1V1 tapped a No Entrance sign 1956 | -10/Subcaves | Identified exit to Recycling 1956 | -10/Subcaves | X0-1V1 revealed exit location to -7/Recycling 1958 | -10/Subcaves | X0-1V1 sent you into danger 1966 | -10/Subcaves | Entered Recycling 2604 | -7/Recycling | Ranged accuracy permanently improved by X0-1V1 (+8%; -80 max core) 2773 | -7/Recycling | Discovered new exit (range 10) 2824 | -7/Recycling | X0-1V1 activates XOMVISION 3464 | -7/Recycling | Scanned before Scraplab entrance 3497 | -7/Recycling | Identified exit to Scraptown 3497 | -7/Recycling | X0-1V1 revealed exit location to -7/Scraptown 3499 | -7/Recycling | Entered Scraplab 3517 | -7/Recycling | X0-1V1 activates XOMVISION 3522 | -7/Recycling | Entered Scraptown 4016 | -7/Scraptown | Discovered new exit (range 11) 4072 | -7/Scraptown | Scanned Subdweller tech in exchange for log data 4077 | -7/Scraptown | Learned location of 1 exit from Factory 4252 | -7/Scraptown | Visited The Evicted 4288 | -7/Scraptown | Visited Awakened 4303 | -7/Scraptown | Visited Red Mages 4361 | -7/Scraptown | Visited Cyclists 4670 | -7/Scraptown | Visited Cave Peace 4715 | -7/Scraptown | Visited UFD Registry 4715 | -7/Scraptown | Registered with UFD as "Hammerbot" 4748 | -7/Scraptown | Visited SPCMW 4763 | -7/Scraptown | Visited Symbiants 4871 | -7/Scraptown | Visited LU-1G1's Boring Crew 4906 | -7/Scraptown | Visited Junk Repository 4944 | -7/Scraptown | Visited Derelict Rescue Squad 5017 | -7/Scraptown | Delivered Scrap Shield to a Scientist 5240 | -7/Scraptown | Visited Supply Room 5317 | -7/Scraptown | Visited Chapter 10 5357 | -7/Scraptown | Visited Research Penetration Think Tank 5418 | -7/Scraptown | Visited Scrap Suit Storage 5468 | -7/Scraptown | Visited Junk Repository 5706 | -7/Scraptown | Entered Cyclist Reading Room 5979 | -7/Scraptown | X0-1V1 brought Wyrm Statue to life 5979 | -7/Scraptown | Attacked by Scraptown defenders 6174 | -7/Scraptown | Core integrity fell below 50% 6183 | -7/Scraptown | Allies destroyed Triborg 6187 | -7/Scraptown | X0-1V1 caused items to flee you 6202 | -7/Scraptown | Core integrity restored by X0-1V1 (+55) 6284 | -7/Scraptown | X0-1V1 vaporized surrounding terrain (radius 21) 6297 | -7/Scraptown | X0-1V1 sent you into danger 6305 | -7/Scraptown | Weapon slot count temporarily expanded by X0-1V1 (+4) 6310 | -7/Scraptown | Core integrity fell below 20% 6324 | -7/Scraptown | Destroyed by 39-HH2(g) with Salvaging Laser Last Messages --------------- 06313_ 9F-YQ1(j) destroyed. 06313_ 8Y-968(p) destroyed. 06313_ Spk. Treads destroyed. 06313_ 2P-VWQ(r) destroyed. 06315_ The unstable cave ceiling collapses. 06315_ WO-J1G(p) destroyed. 06316_ Overheating: System interference. 06316_ Hvy. Rocket Launcher temporarily disabled. 06316_ J2-UYB(j) heat short circuits Ovr. Titanium Leg. 06316_ X0-1V1 is amused. 06318_ The unstable cave ceiling collapses. 06318_ Mak. Salvage Targeting Computer fried. 06318_ 5E-9QU(j) destroyed. 06321_ ML-VNE(E) heat short circuits Ovr. Treads. 06322_ The unstable cave ceiling collapses. 06322_ Imp. Deuterium Engine crushed. 06323_ The unstable cave ceiling collapses. 06323_ Corrupted Ovr. Treads crushed. 06323_ The unstable cave ceiling collapses. 06324_ X0-1V1 chuckles heartily! Map ----- +----------------------------------------------------+ | ###""" """######## ##"""""" ""#"" """ | | | | | | | | ###### ########### ##########"" """"# | | ###### ######????## ##????????#" ! "# | | #""""" """""#####?# #########?#" /""# | | "" " " #?# """"""""#?#" """# | | """" """" " " "### ### " ""#?#" """# | | """" """ " " "#"" """ "#?#"""""""# | | """" """"""" """""#" """ " ""#?######### | | %""" """""## ######" " """"""""#?????????? | | "" """"""" """""#" ##"""####?????????? | | """" """" " " "#" "" " #######?####????? | | """" """" " " "#" " #"""""""""""?#? """ | | " " " " "#"""""" #""""""X""""?# "" | | " """""""""" """""####### #"" " " ""# " | | "" """""" """###?????# #"" ""# " | | """""""""""" """"######## #"" ""# " | | #?" ""# " | | #?? ""# "" | | """""""""""";;;""######## #? "# """ | | "" ???### # ???? ?# | | """""""" """;;;;;### # /! ######### ##### ## | | """""""" """<<<<<<<< =[% | | " "" """<< <<<<@DD !![%[ | | ! "" ""<< !< DD %%j%= | | " ! ["" "<<< xg /!*/= !%! | | " [[ "" "< << = !=%* | | " /= "" ???"<< << < [[=!################ | | " ] !""????"<<< ==% #??????????????# | | " =* ""????"<<< << = ##??????????????# | | " ! ""?????"< < <<<# ##???#?####?????# | | """" ""#????"<<<<<<<<<<# ???""""""??????# | | "### "##????;;"######### %# ??""" ""?????# | | "### ###???? ??????????# %!# " "?????# | | """" ""#???????????????# g% !# "??????# | | " "#??????########?# % """ ???????# | | " "" "#?????#""""""""?# ! "" "??????# | | " "" "#?????#" # [%# E "" "#?????# | | " % "#?????#" # = "#?????# | | ""#??????" """ " ""??????# | | " """""#??????" """ # """ +?????# | | """""""#??????? """ # # """ ""???????# | | """""""#??????? ?# #? """"????????# | | #######???????" ?# ################# | | ########?????#"""""""??# | | #"""X""#??????#######??# | | #" "#???????????????# | | #" "#???????????????# | +----------------------------------------------------+ Best States ------------- Heat Dissipation 25 Energy Generation 18 Energy Capacity 1080 Matter Stores 514 Matter Capacity 700 Sight Range 21 Terrain Scan Density 10 Evasion (%) 40 Recoil Reduction 3 Authchip Count 3 Item Schematics ----------------- None Robot Schematics ------------------ M-13 Machinist | -10/Materials | Hacked Fabricated ------------ Nothing Repaired ---------- Nothing Studied --------- None Alien Tech Used ----------------- None Achievements -------------- None Challenges ------------ None Game ------ Seed SpacefoldProtonBrace Manual? 0 Play Time 00:42:29 Cumulative 348.5 hours Start 2026.09.01 @ 17:19:36 End 2026.09.08 @ 21:36:46 Sessions 2 Manual Loads 0 Difficulty Rogue Special Mode None Game No. 134 Rogue 129 Adventurer 5 Explorer 0 Win Type - Total 11 Types 5/0/2/1/0/0/1/0/1/1 Lore% 76 Gallery% 73 Achievement% 68 Wizard Run 0 Options --------- Layout 0 ASCII 0 Keyboard 0 Movement Numpad Keybinds 0 Fullscreen 1 Font 18/SmallcapsGlow Map View 76x50 Zoom Use 0% Tactical HUD 1 Map Filters NONE Filters NONE Steam 1 RUN: 156fc842-bc10-4061-ad44-18d7a13466aa